[Event "VII Open Internacional Quart de Poblet"]
[Site "Quart de Poblet, Spain"]
[Date "2019.08.09"]
[Round "6.5"]
[White "Navarro Diaz, Carles"]
[Black "Chernikov, Vladimir"]
[Result "0-1"]
[TimeControl "90m +30s por jugada"]
[BlackFideId "14112914"]
[WhiteElo "2067"]
[BlackElo "2315"]

1. e4 {[%clk 01:30:52]} {[%emt 00:00:41]} g6 {[%clk 01:30:58]} 2. d4 {[%clk
01:30:50]} {[%emt 00:00:10]} Bg7 {[%clk 01:31:27]} 3. Nf3 {[%clk 01:30:04]}
{[%emt 00:01:09]} d6 {[%clk 01:31:45]} {[%emt 00:00:16]} 4. Be3 {[%clk
01:29:30]} {[%emt 00:01:01]} Nd7 {[%clk 01:31:04]} {[%emt 00:01:13]} 5. Bc4
{[%clk 01:26:40]} {[%emt 00:03:18]} e6 {[%clk 01:28:53]} {[%emt 00:02:40]} 6.
Nc3 {[%clk 01:24:57]} {[%emt 00:02:16]} a6 {[%clk 01:28:45]} {[%emt 00:00:36]}
7. a4 {[%clk 01:24:19]} {[%emt 00:01:09]} d5 {[%clk 01:27:17]} {[%emt
00:01:55]} 8. exd5 {[%clk 01:20:19]} {[%emt 00:04:31]} Nb6 {[%clk 01:27:07]}
{[%emt 00:00:41]} 9. Qe2 {[%clk 01:15:19]} {[%emt 00:05:29]} exd5 {[%clk
01:18:57]} {[%emt 00:08:51]} 10. Bg5+ {[%clk 01:08:22]} {[%emt 00:07:35]} Ne7
{[%clk 01:19:02]} {[%emt 00:00:05]} 11. Bxe7 {[%clk 01:07:57]} {[%emt
00:00:58]} Qxe7 {[%clk 01:19:25]} {[%emt 00:00:07]} 12. Qxe7+ {[%clk 01:08:14]}
{[%emt 00:00:10]} Kxe7 {[%clk 01:19:54]} {[%emt 00:00:10]} 13. Nxd5+ {[%clk
01:08:16]} {[%emt 00:00:21]} Nxd5 {[%clk 01:20:18]} {[%emt 00:00:10]} 14. Bxd5
{[%clk 01:08:32]} {[%emt 00:00:24]} Rd8 {[%clk 01:19:27]} {[%emt 00:01:03]} 15.
Bb3 {[%clk 01:06:05]} {[%emt 00:02:58]} Bxd4 {[%clk 01:15:51]} {[%emt
00:04:07]} 16. Nxd4 {[%clk 01:04:47]} {[%emt 00:01:51]} Rxd4 {[%clk 01:15:27]}
{[%emt 00:01:14]} 17. O-O {[%clk 01:04:57]} {[%emt 00:00:08]} Bf5 {[%clk
01:15:03]} {[%emt 00:00:43]} 18. Rfe1+ {[%clk 01:03:46]} {[%emt 00:01:42]} Kf6
{[%clk 01:13:22]} {[%emt 00:02:10]} 19. Re2 {[%clk 01:03:23]} {[%emt 00:00:54]}
Rad8 {[%clk 01:12:08]} {[%emt 00:01:45]} 20. c3 {[%clk 01:02:54]} {[%emt
00:01:01]} Rd2 {[%clk 01:11:34]} {[%emt 00:01:02]} 21. Rae1 {[%clk 01:02:55]}
{[%emt 00:00:29]} Rxe2 {[%clk 01:11:04]} {[%emt 00:01:02]} 22. Rxe2 {[%clk
01:03:15]} {[%emt 00:00:10]} Be6 {[%clk 01:11:15]} {[%emt 00:00:22]} 23. Bc2
{[%clk 01:02:16]} {[%emt 00:01:24]} Bc4 {[%clk 01:11:10]} {[%emt 00:00:34]} 24.
Re4 {[%clk 01:00:33]} {[%emt 00:02:16]} b5 {[%clk 01:07:54]} {[%emt 00:03:43]}
25. axb5 {[%clk 00:54:28]} {[%emt 00:06:34]} axb5 {[%clk 01:07:30]} {[%emt
00:00:57]} 26. Rf4+ {[%clk 00:53:26]} {[%emt 00:01:29]} Kg5 {[%clk 00:56:20]}
{[%emt 00:11:39]} 27. g3 {[%clk 00:42:51]} {[%emt 00:11:06]} Rd2 {[%clk
00:43:24]} {[%emt 00:13:28]} 28. h4+ {[%clk 00:41:36]} {[%emt 00:01:51]} Kh6
{[%clk 00:42:45]} {[%emt 00:01:03]} 29. b3 {[%clk 00:41:30]} {[%emt 00:00:33]}
Be6 {[%clk 00:42:48]} {[%emt 00:00:26]} 30. Be4 {[%clk 00:41:43]} {[%emt
00:00:18]} Bxb3 {[%clk 00:43:00]} {[%emt 00:00:18]} 31. Kg2 {[%clk 00:33:24]}
{[%emt 00:08:51]} Bc4 {[%clk 00:42:40]} {[%emt 00:00:52]} 32. Rf6 {[%clk
00:31:06]} {[%emt 00:02:44]} Be6 {[%clk 00:38:14]} {[%emt 00:04:55]} 33. Kf3
{[%clk 00:22:33]} {[%emt 00:09:04]} Kg7 {[%clk 00:36:41]} {[%emt 00:02:02]} 34.
Rf4 {[%clk 00:22:52]} {[%emt 00:00:18]} f5 {[%clk 00:34:30]} {[%emt 00:02:34]}
35. Bb1 {[%clk 00:23:07]} {[%emt 00:00:33]} c5 {[%clk 00:26:13]} {[%emt
00:08:28]} 36. Ke3 {[%clk 00:23:19]} {[%emt 00:00:17]} Rb2 {[%clk 00:26:32]}
{[%emt 00:00:13]} 37. Bd3 {[%clk 00:23:24]} {[%emt 00:00:26]} h6 {[%clk
00:26:15]} {[%emt 00:00:44]} 38. Rf3 {[%clk 00:22:18]} {[%emt 00:01:37]} c4
{[%clk 00:24:45]} {[%emt 00:02:00]} 39. Bf1 {[%clk 00:21:57]} {[%emt 00:00:51]}
Bd5 {[%clk 00:24:30]} {[%emt 00:00:45]} 40. Rf4 {[%clk 00:22:15]} {[%emt
00:00:14]} Be4 {[%clk 00:24:52]} {[%emt 00:00:05]} 41. f3 {[%clk 00:19:12]}
{[%emt 00:03:34]} g5 {[%clk 00:23:15]} {[%emt 00:02:13]} 42. hxg5 {[%clk
00:19:33]} {[%emt 00:00:05]} hxg5 {[%clk 00:23:37]} {[%emt 00:00:09]} 43. Rxe4
{[%clk 00:14:50]} {[%emt 00:05:08]} fxe4 {[%clk 00:24:02]} {[%emt 00:00:07]} 44.
fxe4 {[%clk 00:15:12]} {[%emt 00:00:11]} Rc2 {[%clk 00:22:38]} {[%emt
00:01:50]} 45. Kd4 {[%clk 00:13:42]} {[%emt 00:02:03]} g4 {[%clk 00:23:04]}
{[%emt 00:00:03]} 0-1

[Event "VII Open Internacional Quart de Poblet"]
[Site "Quart de Poblet, Spain"]
[Date "2019.08.09"]
[Round "6.6"]
[White "Nieves Cabanes, Jose Manuel"]
[Black "Ventura Monfort, Javier"]
[Result "1-0"]
[TimeControl "90m +30s por jugada"]
[WhiteFideId "22245715"]
[BlackFideId "32023170"]
[WhiteElo "2311"]
[BlackElo "1678"]

1. d4 {[%clk 01:30:58]} {[%emt 00:00:09]} Nf6 {[%clk 01:30:53]} {[%emt
00:00:05]} 2. Nf3 {[%clk 01:31:09]} {[%emt 00:00:18]} e6 {[%clk 01:31:00]}
{[%emt 00:00:27]} 3. c4 {[%clk 01:30:23]} {[%emt 00:01:12]} d5 {[%clk
01:30:27]} {[%emt 00:00:59]} 4. Nc3 {[%clk 01:29:53]} {[%emt 00:01:00]} Bb4
{[%clk 01:30:51]} {[%emt 00:00:30]} 5. Bg5 {[%clk 01:28:17]} {[%emt 00:01:42]}
h6 {[%clk 01:30:21]} {[%emt 00:01:19]} 6. Bxf6 {[%clk 01:28:18]} {[%emt
00:00:10]} Qxf6 {[%clk 01:30:44]} {[%emt 00:00:27]} 7. e3 {[%clk 01:28:00]}
{[%emt 00:00:29]} O-O {[%clk 01:22:15]} {[%emt 00:09:03]} 8. cxd5 {[%clk
01:26:51]} {[%emt 00:01:35]} exd5 {[%clk 01:22:22]} {[%emt 00:00:28]} 9. Qb3
{[%clk 01:27:13]} {[%emt 00:00:08]} Qd6 {[%clk 01:12:04]} {[%emt 00:10:49]} 10.
Bd3 {[%clk 01:20:21]} {[%emt 00:07:18]} Nd7 {[%clk 00:59:32]} {[%emt 00:12:59]}
11. O-O {[%clk 01:19:29]} {[%emt 00:01:35]} c6 {[%clk 00:59:56]} {[%emt
00:00:09]} 12. Bf5 {[%clk 01:05:57]} {[%emt 00:13:59]} Nb6 {[%clk 00:51:03]}
{[%emt 00:09:14]} 13. Bxc8 {[%clk 01:05:58]} {[%emt 00:00:25]} Raxc8 {[%clk
00:48:58]} {[%emt 00:02:55]} 14. Ne2 {[%clk 01:03:10]} {[%emt 00:02:58]} Qe7
{[%clk 00:46:05]} {[%emt 00:03:23]} 15. Nf4 {[%clk 00:59:28]} {[%emt 00:04:22]}
Nc4 {[%clk 00:42:34]} {[%emt 00:04:09]} 16. Nd3 {[%clk 00:57:34]} {[%emt
00:02:12]} Bd6 {[%clk 00:34:45]} {[%emt 00:08:22]} 17. Rfe1 {[%clk 00:56:17]}
{[%emt 00:01:39]} Bb8 {[%clk 00:26:14]} {[%emt 00:09:01]} 18. e4 {[%clk
00:52:42]} {[%emt 00:04:08]} Na5 {[%clk 00:22:10]} {[%emt 00:04:31]} 19. Qc3
{[%clk 00:50:47]} {[%emt 00:02:25]} Qd8 {[%clk 00:21:40]} {[%emt 00:01:00]} 20.
e5 {[%clk 00:50:25]} {[%emt 00:00:52]} b6 {[%clk 00:19:54]} {[%emt 00:02:27]}
21. Nd2 {[%clk 00:43:15]} {[%emt 00:07:29]} c5 {[%clk 00:16:20]} {[%emt
00:04:04]} 22. dxc5 {[%clk 00:42:13]} {[%emt 00:01:32]} d4 {[%clk 00:13:55]}
{[%emt 00:02:54]} 23. Qa3 {[%clk 00:41:29]} {[%emt 00:01:15]} bxc5 {[%clk
00:10:09]} {[%emt 00:04:15]} 24. Nxc5 {[%clk 00:41:39]} {[%emt 00:00:27]} Nc6
{[%clk 00:10:09]} {[%emt 00:00:23]} 25. Nd3 {[%clk 00:40:45]} {[%emt 00:01:24]}
Qg5 {[%clk 00:06:47]} {[%emt 00:03:54]} 26. f4 {[%clk 00:39:37]} {[%emt
00:01:36]} Qf5 {[%clk 00:06:43]} {[%emt 00:00:35]} 27. Ne4 {[%clk 00:39:51]}
{[%emt 00:00:25]} Rcd8 {[%clk 00:05:17]} {[%emt 00:01:50]} 28. Rac1 {[%clk
00:39:40]} {[%emt 00:00:41]} Ne7 {[%clk 00:05:21]} {[%emt 00:00:12]} 29. Qxe7
{[%clk 00:39:55]} {[%emt 00:00:55]} 1-0

[Event "VII Open Internacional Quart de Poblet"]
[Site "Quart de Poblet, Spain"]
[Date "2019.08.09"]
[Round "6.7"]
[White "Martinez Lopez, Jaume"]
[Black "Lara Lopez, Jose"]
[Result "0-1"]
[TimeControl "90m +30s por jugada"]
[WhiteFideId "2211254"]
[BlackFideId "2257041"]
[WhiteElo "1982"]
[BlackElo "2271"]

1. d4 {[%clk 01:30:57]} {[%emt 00:00:06]} Nf6 {[%clk 01:24:51]} {[%emt
00:06:09]} 2. Nf3 {[%clk 01:31:14]} {[%emt 00:00:11]} e6 {[%clk 01:25:00]}
{[%emt 00:00:25]} 3. Bf4 {[%clk 01:31:38]} {[%emt 00:00:08]} c5 {[%clk
01:18:20]} {[%emt 00:07:06]} 4. e3 {[%clk 01:32:01]} {[%emt 00:00:06]} Nc6
{[%clk 01:15:38]} {[%emt 00:03:12]} 5. Nbd2 {[%clk 01:31:52]} {[%emt 00:00:49]}
d5 {[%clk 01:11:22]} {[%emt 00:05:00]} 6. c3 {[%clk 01:32:05]} Bd6 {[%clk
01:11:42]} {[%emt 00:00:05]} 7. Bg3 {[%clk 01:32:29]} {[%emt 00:00:10]} O-O
{[%clk 01:10:39]} {[%emt 00:01:55]} 8. Bd3 {[%clk 01:32:45]} {[%emt 00:00:04]}
Re8 {[%clk 01:10:26]} {[%emt 00:00:23]} 9. Ne5 {[%clk 01:33:02]} {[%emt
00:00:17]} Qc7 {[%clk 01:09:26]} {[%emt 00:01:26]} 10. f4 {[%clk 01:32:26]}
{[%emt 00:01:09]} Ne7 {[%clk 01:06:50]} {[%emt 00:03:03]} 11. Bf2 {[%clk
01:18:07]} {[%emt 00:14:49]} Rf8 {[%clk 00:52:29]} {[%emt 00:14:51]} 12. Qb1
{[%clk 00:59:40]} {[%emt 00:18:59]} c4 {[%clk 00:34:54]} {[%emt 00:18:02]} 13.
Bc2 {[%clk 00:59:34]} {[%emt 00:00:45]} b5 {[%clk 00:34:44]} {[%emt 00:00:34]}
14. a3 {[%clk 00:40:08]} {[%emt 00:19:57]} g6 {[%clk 00:30:49]} {[%emt
00:04:21]} 15. h4 {[%clk 00:28:16]} {[%emt 00:12:32]} Bxe5 {[%clk 00:29:18]}
{[%emt 00:01:50]} 16. fxe5 {[%clk 00:28:22]} {[%emt 00:00:25]} Ng4 {[%clk
00:29:42]} {[%emt 00:00:11]} 17. h5 {[%clk 00:24:53]} {[%emt 00:03:55]} Nf5
{[%clk 00:29:05]} {[%emt 00:01:06]} 18. Bxf5 {[%clk 00:22:27]} {[%emt
00:02:54]} exf5 {[%clk 00:27:17]} {[%emt 00:02:19]} 19. Nf3 {[%clk 00:20:45]}
{[%emt 00:02:12]} a5 {[%clk 00:07:44]} {[%emt 00:20:04]} 20. Ke2 {[%clk
00:15:14]} {[%emt 00:06:06]} Rb8 {[%clk 00:07:11]} {[%emt 00:01:07]} 21. Bg3
{[%clk 00:15:02]} {[%emt 00:00:44]} b4 {[%clk 00:06:22]} {[%emt 00:01:23]} 22.
Qe1 {[%clk 00:15:13]} {[%emt 00:00:05]} bxc3 {[%clk 00:06:12]} {[%emt
00:00:41]} 23. bxc3 {[%clk 00:15:34]} {[%emt 00:00:24]} Rb2+ {[%clk 00:06:38]}
24. Nd2 {[%clk 00:16:01]} Be6 {[%clk 00:06:39]} {[%emt 00:00:22]} 25. Rb1
{[%clk 00:15:31]} {[%emt 00:00:57]} Rfb8 {[%clk 00:06:53]} {[%emt 00:00:16]} 26.
Rxb2 {[%clk 00:15:48]} {[%emt 00:00:41]} Rxb2 {[%clk 00:07:19]} 27. Qa1 {[%clk
00:15:15]} {[%emt 00:01:02]} Rb7 {[%clk 00:04:12]} {[%emt 00:03:17]} 28. Bf4
{[%clk 00:15:32]} {[%emt 00:00:22]} Qd8 {[%clk 00:03:47]} {[%emt 00:00:45]} 29.
hxg6 {[%clk 00:11:31]} {[%emt 00:04:27]} fxg6 {[%clk 00:03:30]} {[%emt
00:00:47]} 30. Rb1 {[%clk 00:11:44]} {[%emt 00:00:35]} Qh4 {[%clk 00:02:37]}
{[%emt 00:01:04]} 31. Rf1 {[%clk 00:11:41]} {[%emt 00:00:36]} Qe7 {[%clk
00:01:03]} {[%emt 00:02:02]} 32. Rh1 {[%clk 00:06:04]} {[%emt 00:06:07]} g5
{[%clk 00:01:19]} {[%emt 00:00:26]} 33. Bg3 {[%clk 00:06:30]} Nxe3 {[%clk
00:01:16]} {[%emt 00:00:24]} 34. Kxe3 {[%clk 00:06:33]} {[%emt 00:00:44]} f4+
{[%clk 00:01:42]} 35. Bxf4 {[%clk 00:06:14]} {[%emt 00:00:40]} gxf4+ {[%clk
00:02:08]} {[%emt 00:00:03]} 36. Kf2 {[%clk 00:05:56]} {[%emt 00:00:48]} Qg5
{[%clk 00:02:13]} {[%emt 00:00:23]} 37. Qc1 {[%clk 00:03:36]} {[%emt 00:02:49]}
Qg3+ {[%clk 00:02:20]} {[%emt 00:00:25]} 38. Kg1 {[%clk 00:02:49]} {[%emt
00:01:28]} Qe3+ {[%clk 00:01:37]} {[%emt 00:01:07]} 39. Kh2 {[%clk 00:03:02]}
{[%emt 00:00:35]} Rg7 {[%clk 00:01:08]} {[%emt 00:00:34]} 40. Nf3 {[%clk
00:03:28]} {[%emt 00:00:31]} Qf2 {[%clk 00:01:11]} {[%emt 00:00:03]} 41. Qf1
{[%clk 00:01:51]} {[%emt 00:02:08]} Qg3+ {[%clk 00:00:43]} {[%emt 00:00:56]} 42.
Kg1 {[%clk 00:02:16]} {[%emt 00:00:05]} Rb7 {[%clk 00:00:54]} {[%emt 00:00:16]}
43. Qc1 {[%clk 00:01:55]} {[%emt 00:00:55]} Bf5 {[%clk 00:01:10]} {[%emt
00:00:12]} 44. Rh4 {[%clk 00:02:18]} {[%emt 00:00:33]} Rb1 {[%emt 00:00:04]}
0-1

[Event "VII Open Internacional Quart de Poblet"]
[Site "Quart de Poblet, Spain"]
[Date "2019.08.09"]
[Round "6.8"]
[White "Nieves Cabanes, Javier"]
[Black "Nieto Tornero, Jose"]
[Result "1-0"]
[TimeControl "90m +30s por jugada"]
[WhiteFideId "22245707"]
[BlackFideId "2294354"]
[WhiteElo "2211"]
[BlackElo "1851"]

1. d4 {[%clk 01:30:57]} {[%emt 00:00:29]} d5 {[%clk 01:30:38]} {[%emt
00:00:04]} 2. c4 {[%clk 01:31:18]} {[%emt 00:00:04]} e6 {[%clk 01:28:53]}
{[%emt 00:02:15]} 3. Nf3 {[%clk 01:28:15]} {[%emt 00:03:30]} Nf6 {[%clk
01:26:08]} {[%emt 00:03:14]} 4. e3 {[%clk 01:28:07]} {[%emt 00:00:41]} Bb4+
{[%clk 01:23:13]} {[%emt 00:03:23]} 5. Nbd2 {[%clk 01:27:42]} {[%emt 00:00:59]}
c5 {[%clk 01:21:45]} {[%emt 00:01:54]} 6. cxd5 {[%clk 01:19:55]} {[%emt
00:08:52]} exd5 {[%clk 01:18:41]} {[%emt 00:02:59]} 7. a3 {[%clk 01:20:15]}
{[%emt 00:00:10]} Bxd2+ {[%clk 01:17:37]} {[%emt 00:01:42]} 8. Bxd2 {[%clk
01:19:52]} {[%emt 00:01:18]} cxd4 {[%clk 01:12:47]} {[%emt 00:04:47]} 9. Bb5+
{[%clk 01:10:37]} {[%emt 00:09:44]} Bd7 {[%clk 01:09:28]} {[%emt 00:03:50]} 10.
Nxd4 {[%clk 01:09:44]} {[%emt 00:01:23]} Bxb5 {[%clk 01:02:12]} {[%emt
00:07:50]} 11. Nxb5 {[%clk 01:10:00]} {[%emt 00:00:10]} Nc6 {[%clk 01:02:19]}
{[%emt 00:00:23]} 12. Bc3 {[%clk 01:09:14]} {[%emt 00:01:15]} O-O {[%clk
01:01:02]} {[%emt 00:01:48]} 13. O-O {[%clk 01:05:45]} {[%emt 00:04:19]} a6
{[%clk 00:55:29]} {[%emt 00:05:59]} 14. Nd4 {[%clk 01:04:00]} {[%emt 00:02:00]}
Ne4 {[%clk 00:53:20]} {[%emt 00:02:40]} 15. Be1 {[%clk 01:02:19]} {[%emt
00:02:11]} Qb6 {[%clk 00:48:27]} {[%emt 00:05:29]} 16. Qb3 {[%clk 00:58:22]}
{[%emt 00:04:50]} Qxb3 {[%clk 00:45:08]} {[%emt 00:03:27]} 17. Nxb3 {[%clk
00:58:50]} Rfd8 {[%clk 00:39:02]} {[%emt 00:06:31]} 18. Rd1 {[%clk 00:52:13]}
{[%emt 00:07:07]} b6 {[%clk 00:36:25]} {[%emt 00:03:07]} 19. f3 {[%clk
00:40:49]} {[%emt 00:11:54]} Nc5 {[%clk 00:34:59]} {[%emt 00:01:55]} 20. Rc1
{[%clk 00:40:51]} {[%emt 00:00:30]} Ne5 {[%clk 00:22:45]} {[%emt 00:12:43]} 21.
Nxc5 {[%clk 00:33:55]} {[%emt 00:07:56]} bxc5 {[%clk 00:23:05]} {[%emt
00:00:03]} 22. Bh4 {[%clk 00:32:42]} {[%emt 00:01:30]} Rdb8 {[%clk 00:07:02]}
{[%emt 00:16:22]} 23. Bg3 {[%clk 00:23:18]} {[%emt 00:10:19]} Re8 {[%clk
00:02:46]} {[%emt 00:05:01]} 24. Rxc5 {[%clk 00:20:13]} {[%emt 00:02:57]} Nc4
{[%clk 00:02:59]} {[%emt 00:00:16]} 25. e4 {[%clk 00:19:42]} {[%emt 00:01:01]}
Nxb2 {[%clk 00:01:04]} {[%emt 00:02:24]} 26. exd5 {[%clk 00:20:01]} {[%emt
00:00:21]} Na4 {[%clk 00:00:48]} {[%emt 00:00:36]} 27. Rc6 {[%clk 00:19:52]}
{[%emt 00:00:39]} 1-0

[Event "VII Open Internacional Quart de Poblet"]
[Site "Quart de Poblet, Spain"]
[Date "2019.08.09"]
[Round "6.9"]
[White "Simarro Peiro, Andres"]
[Black "Piris Ferrandis, Asier"]
[Result "0-1"]
[TimeControl "90m +30s por jugada"]
[WhiteFideId "54599067"]
[BlackFideId "54535999"]
[WhiteElo "1005"]
[BlackElo "1218"]

1. e4 {[%clk 01:30:58]} c5 {[%clk 01:30:54]} {[%emt 00:00:06]} 2. Nf3 {[%clk
01:30:55]} {[%emt 00:00:33]} d6 {[%clk 01:30:43]} {[%emt 00:00:42]} 3. Nc3
{[%clk 01:30:45]} {[%emt 00:00:40]} Nf6 {[%clk 01:30:19]} {[%emt 00:00:54]} 4.
Bc4 {[%clk 01:30:27]} {[%emt 00:00:47]} g6 {[%clk 01:29:44]} {[%emt 00:01:05]}
5. d3 {[%clk 01:29:51]} {[%emt 00:01:06]} Bg7 {[%clk 01:29:07]} {[%emt
00:01:07]} 6. O-O {[%clk 01:30:02]} {[%emt 00:00:19]} O-O {[%clk 01:28:59]}
{[%emt 00:00:39]} 7. Be3 {[%clk 01:30:10]} {[%emt 00:00:22]} Nc6 {[%clk
01:28:47]} {[%emt 00:00:42]} 8. Qd2 {[%clk 01:29:40]} {[%emt 00:01:00]} a6
{[%clk 01:28:11]} {[%emt 00:01:06]} 9. Rad1 {[%clk 01:28:50]} {[%emt 00:01:19]}
b5 {[%clk 01:26:35]} {[%emt 00:02:08]} 10. Bb3 {[%clk 01:28:50]} {[%emt
00:00:29]} Rb8 {[%clk 01:24:01]} {[%emt 00:03:04]} 11. Rfe1 {[%clk 01:27:55]}
{[%emt 00:01:26]} a5 {[%clk 01:23:03]} {[%emt 00:01:27]} 12. a4 {[%clk
01:27:39]} {[%emt 00:00:47]} bxa4 {[%clk 01:18:27]} {[%emt 00:05:07]} 13. Nxa4
{[%clk 01:27:18]} {[%emt 00:00:51]} Bd7 {[%clk 01:18:44]} {[%emt 00:00:12]} 14.
d4 {[%clk 01:26:45]} {[%emt 00:01:03]} cxd4 {[%clk 01:16:17]} {[%emt 00:02:58]}
15. Bf4 {[%clk 01:25:51]} {[%emt 00:01:23]} e5 {[%clk 01:13:20]} {[%emt
00:03:27]} 16. Bg3 {[%clk 01:25:53]} {[%emt 00:00:28]} Qe8 {[%clk 01:11:24]}
{[%emt 00:02:27]} 17. h3 {[%clk 01:25:39]} {[%emt 00:00:44]} Nb4 {[%clk
01:10:39]} {[%emt 00:01:15]} 18. Rc1 {[%clk 01:24:26]} {[%emt 00:01:42]} Bxa4
{[%clk 01:10:14]} {[%emt 00:00:55]} 19. Bc4 {[%clk 01:23:57]} {[%emt 00:00:57]}
Qc6 {[%clk 01:09:47]} {[%emt 00:00:57]} 20. b3 {[%clk 01:23:56]} {[%emt
00:00:32]} Bb5 {[%clk 01:09:06]} {[%emt 00:01:11]} 21. Qe2 {[%clk 01:23:31]}
{[%emt 00:00:53]} Bxc4 {[%clk 01:07:35]} {[%emt 00:02:01]} 22. bxc4 {[%clk
01:23:49]} {[%emt 00:00:13]} a4 {[%clk 01:07:15]} {[%emt 00:00:51]} 23. Red1
{[%clk 01:23:40]} {[%emt 00:00:38]} Nxe4 {[%clk 01:07:15]} {[%emt 00:00:29]} 24.
Kf1 {[%clk 01:23:13]} {[%emt 00:00:58]} Nc3 {[%clk 01:06:47]} {[%emt 00:00:54]}
25. Qe1 {[%clk 01:23:08]} {[%emt 00:00:38]} Qxc4+ {[%clk 01:06:13]} {[%emt
00:01:03]} 26. Kg1 {[%clk 01:23:12]} {[%emt 00:00:26]} Qe2 {[%clk 01:05:18]}
{[%emt 00:01:22]} 27. Qxe2 {[%clk 01:23:14]} {[%emt 00:00:32]} Nxe2+ {[%clk
01:05:39]} {[%emt 00:00:09]} 28. Kh1 {[%clk 01:22:23]} {[%emt 00:01:21]} Nxc1
{[%clk 01:05:58]} {[%emt 00:00:10]} 29. Rxc1 {[%clk 01:22:42]} {[%emt
00:00:11]} a3 {[%clk 01:06:01]} {[%emt 00:00:26]} 30. Nd2 {[%clk 01:22:43]}
{[%emt 00:00:29]} Bh6 {[%clk 01:06:13]} {[%emt 00:00:19]} 31. Rd1 {[%clk
01:22:27]} {[%emt 00:00:46]} Bxd2 {[%clk 01:06:34]} {[%emt 00:00:09]} 32. Rxd2
{[%clk 01:22:43]} {[%emt 00:00:14]} a2 {[%clk 01:06:55]} {[%emt 00:00:08]} 33.
Rd1 {[%clk 01:22:48]} {[%emt 00:00:26]} Ra8 {[%clk 01:07:12]} {[%emt 00:00:13]}
34. c3 {[%clk 01:21:37]} {[%emt 00:01:41]} a1=Q {[%clk 01:07:27]} {[%emt
00:00:16]} 35. Rxa1 {[%clk 01:21:55]} {[%emt 00:00:10]} Rxa1+ {[%clk 01:07:47]}
{[%emt 00:00:12]} 36. Kh2 {[%clk 01:22:11]} {[%emt 00:00:13]} dxc3 {[%clk
01:08:02]} {[%emt 00:00:16]} 37. f4 {[%clk 01:22:24]} {[%emt 00:00:16]} c2
{[%clk 01:08:21]} {[%emt 00:00:12]} 38. fxe5 {[%clk 01:22:30]} {[%emt
00:00:24]} c1=Q {[%emt 00:00:14]} 39. Bf2 {[%clk 01:20:40]} {[%emt 00:02:18]}
Qf4+ {[%clk 01:08:37]} {[%emt 00:00:30]} 40. Bg3 {[%clk 01:18:57]} {[%emt
00:02:13]} Qf1 {[%clk 01:08:32]} {[%emt 00:00:35]} 41. exd6 {[%clk 01:15:38]}
{[%emt 00:03:49]} Qh1# {[%clk 01:08:14]} {[%emt 00:00:49]} 0-1